[Event "Late-Titled-Tuesday-Blitz-January-16-2024"]
[Site "Chess.com"]
[Date "2024.01.16"]
[Round "6"]
[White "Sanyura"]
[Black "cthulhuuu"]
[Result "0-1"]
[WhiteElo "2615"]
[BlackElo "2447"]
[TimeControl "180+1"]
[EndTime "15:05:17 PST"]
[Termination "cthulhuuu won by resignation"]

1. e4 {[%clk 0:02:34.2]} 1... d6 {[%clk 0:02:57.9]} 2. d4 {[%clk 0:02:34]} 2...
Nf6 {[%clk 0:02:58.2]} 3. Bd3 {[%clk 0:02:33.9]} 3... e5 {[%clk 0:02:57.5]} 4.
c3 {[%clk 0:02:32.5]} 4... Be7 {[%clk 0:02:57]} 5. Nf3 {[%clk 0:02:32.6]} 5...
Nbd7 {[%clk 0:02:57.1]} 6. O-O {[%clk 0:02:32.5]} 6... O-O {[%clk 0:02:57.3]} 7.
Bg5 {[%clk 0:02:32.6]} 7... c6 {[%clk 0:02:47.9]} 8. Nbd2 {[%clk 0:02:32]} 8...
Re8 {[%clk 0:02:43.3]} 9. Re1 {[%clk 0:02:30.8]} 9... h6 {[%clk 0:02:28.3]} 10.
Bh4 {[%clk 0:02:29]} 10... Nh7 {[%clk 0:02:24.2]} 11. Bxe7 {[%clk 0:02:28.3]}
11... Qxe7 {[%clk 0:02:25.1]} 12. Nf1 {[%clk 0:02:27.9]} 12... Ng5 {[%clk
0:02:22.6]} 13. Ng3 {[%clk 0:02:24.8]} 13... g6 {[%clk 0:02:12.8]} 14. Bc2
{[%clk 0:02:21.9]} 14... Kg7 {[%clk 0:02:10.5]} 15. Qe2 {[%clk 0:02:20.1]} 15...
Qf6 {[%clk 0:02:09.3]} 16. Nxg5 {[%clk 0:02:20.4]} 16... Qxg5 {[%clk 0:02:04.4]}
17. Rad1 {[%clk 0:02:21.3]} 17... h5 {[%clk 0:01:57.8]} 18. dxe5 {[%clk
0:02:13.1]} 18... dxe5 {[%clk 0:01:56]} 19. Qe3 {[%clk 0:02:12]} 19... Qxe3
{[%clk 0:01:21.3]} 20. Rxe3 {[%clk 0:02:12.9]} 20... h4 {[%clk 0:01:21.8]} 21.
Nf1 {[%clk 0:02:12.8]} 21... Nc5 {[%clk 0:01:21.7]} 22. f3 {[%clk 0:02:12.6]}
22... a5 {[%clk 0:01:20.8]} 23. Re2 {[%clk 0:02:08.1]} 23... Be6 {[%clk
0:01:19.6]} 24. b3 {[%clk 0:02:07.3]} 24... Red8 {[%clk 0:01:07.8]} 25. Red2
{[%clk 0:02:07.4]} 25... Rxd2 {[%clk 0:01:07.9]} 26. Rxd2 {[%clk 0:02:08.3]}
26... Kf8 {[%clk 0:01:07.8]} 27. Kf2 {[%clk 0:02:08.8]} 27... Ke7 {[%clk
0:01:07.7]} 28. Ke3 {[%clk 0:02:00.2]} 28... Rd8 {[%clk 0:01:06.9]} 29. Rxd8
{[%clk 0:01:59.9]} 29... Kxd8 {[%clk 0:01:07.8]} 30. f4 {[%clk 0:02:00.4]} 30...
exf4+ {[%clk 0:01:06.2]} 31. Kxf4 {[%clk 0:02:00.5]} 31... f6 {[%clk 0:00:58.5]}
32. e5 {[%clk 0:01:59]} 32... g5+ {[%clk 0:00:55.9]} 33. Ke3 {[%clk 0:01:54.5]}
33... fxe5 {[%clk 0:00:55.3]} 34. Nd2 {[%clk 0:01:49.4]} 34... Bd5 {[%clk
0:00:38.1]} 35. g3 {[%clk 0:01:43.3]} 35... hxg3 {[%clk 0:00:39]} 36. hxg3
{[%clk 0:01:44]} 36... Ke7 {[%clk 0:00:37.4]} 37. c4 {[%clk 0:01:25.9]} 37...
Be6 {[%clk 0:00:22.8]} 38. a3 {[%clk 0:01:25.9]} 38... Kf6 {[%clk 0:00:14.6]}
39. b4 {[%clk 0:01:24.4]} 39... axb4 {[%clk 0:00:15.5]} 40. axb4 {[%clk
0:01:25]} 40... Na6 {[%clk 0:00:16.2]} 41. Ne4+ {[%clk 0:01:25.6]} 41... Kg6
{[%clk 0:00:16.3]} 42. b5 {[%clk 0:01:06.4]} 42... Nb4 {[%clk 0:00:16]} 43. Bb3
{[%clk 0:01:02.3]} 43... cxb5 {[%clk 0:00:13]} 44. Nc5 {[%clk 0:00:56.2]} 44...
bxc4 {[%clk 0:00:10.1]} 45. Bd1 {[%clk 0:00:54.4]} 45... Bd5 {[%clk 0:00:10.1]}
46. Kd2 {[%clk 0:00:50.8]} 46... b6 {[%clk 0:00:08.8]} 47. Nd7 {[%clk
0:00:51.1]} 47... Nc6 {[%clk 0:00:07.9]} 48. Nxb6 {[%clk 0:00:50.1]} 48... Be6
{[%clk 0:00:08.1]} 49. Bc2+ {[%clk 0:00:50.2]} 49... Kh5 {[%clk 0:00:08.1]} 50.
Bd1+ {[%clk 0:00:47.5]} 50... Kg6 {[%clk 0:00:08.3]} 51. Bc2+ {[%clk 0:00:45.4]}
51... Kf6 {[%clk 0:00:08.7]} 52. Kc3 {[%clk 0:00:37.7]} 52... Nd4 {[%clk
0:00:07.9]} 53. Be4 {[%clk 0:00:36]} 53... Ne2+ {[%clk 0:00:08]} 54. Kd2 {[%clk
0:00:32.2]} 54... Nxg3 {[%clk 0:00:08.9]} 55. Bg2 {[%clk 0:00:29.7]} 55... Nf5
{[%clk 0:00:09.3]} 56. Bf1 {[%clk 0:00:28.8]} 56... g4 {[%clk 0:00:09.5]} 57.
Bxc4 {[%clk 0:00:24.2]} 57... Bxc4 {[%clk 0:00:07.3]} 58. Nxc4 {[%clk
0:00:25.1]} 58... Ke6 {[%clk 0:00:07.1]} 59. Ke2 {[%clk 0:00:24.3]} 59... Kd5
{[%clk 0:00:07.1]} 60. Nd2 {[%clk 0:00:18.4]} 60... Kd4 {[%clk 0:00:07.5]} 61.
Kf2 {[%clk 0:00:18.3]} 61... e4 {[%clk 0:00:06.6]} 62. Nf1 {[%clk 0:00:17.9]}
62... e3+ {[%clk 0:00:05]} 63. Ke2 {[%clk 0:00:15.8]} 63... Ke4 {[%clk
0:00:05.3]} 64. Ke1 {[%clk 0:00:11.1]} 64... Nd4 {[%clk 0:00:05.3]} 65. Ng3+
{[%clk 0:00:11.1]} 65... Kf3 {[%clk 0:00:05.5]} 0-1

[Event "Late-Titled-Tuesday-Blitz-January-16-2024"]
[Site "Chess.com"]
[Date "2024.01.16"]
[Round "6"]
[White "Petukhov_Dmitry"]
[Black "dmitrijiIM"]
[Result "0-1"]
[WhiteElo "2553"]
[BlackElo "2885"]
[TimeControl "180+1"]
[EndTime "15:05:18 PST"]
[Termination "dmitrijiIM won by resignation"]

1. e4 {[%clk 0:03:00]} 1... e5 {[%clk 0:02:55.1]} 2. Nf3 {[%clk 0:02:58.7]} 2...
Nc6 {[%clk 0:02:54.1]} 3. Bb5 {[%clk 0:02:58.9]} 3... Nge7 {[%clk 0:02:53.8]} 4.
O-O {[%clk 0:02:58.7]} 4... Ng6 {[%clk 0:02:46.7]} 5. d4 {[%clk 0:02:53.5]} 5...
exd4 {[%clk 0:02:42.9]} 6. Nxd4 {[%clk 0:02:54.4]} 6... Nxd4 {[%clk 0:02:39.2]}
7. Qxd4 {[%clk 0:02:55.3]} 7... c6 {[%clk 0:02:38.4]} 8. Be2 {[%clk 0:02:49.5]}
8... Qb6 {[%clk 0:02:37.6]} 9. Qxb6 {[%clk 0:02:48.4]} 9... axb6 {[%clk
0:02:38.5]} 10. a3 {[%clk 0:02:38.5]} 10... b5 {[%clk 0:02:34.6]} 11. c3 {[%clk
0:02:36.7]} 11... Bc5 {[%clk 0:02:32.7]} 12. Nd2 {[%clk 0:02:34.9]} 12... O-O
{[%clk 0:02:32.7]} 13. Nb3 {[%clk 0:02:28]} 13... Bb6 {[%clk 0:02:32.8]} 14. Nd4
{[%clk 0:02:23.6]} 14... Re8 {[%clk 0:02:31.3]} 15. Bd3 {[%clk 0:02:23.8]} 15...
d6 {[%clk 0:02:16.4]} 16. Be3 {[%clk 0:02:21.5]} 16... Ne5 {[%clk 0:02:15.7]}
17. Bc2 {[%clk 0:02:19.7]} 17... Nc4 {[%clk 0:02:14.4]} 18. Bc1 {[%clk 0:02:20]}
18... Bd7 {[%clk 0:02:01.6]} 19. b3 {[%clk 0:02:18.2]} 19... Ne5 {[%clk
0:01:59.6]} 20. Re1 {[%clk 0:01:51.3]} 20... Ng6 {[%clk 0:01:30]} 21. Be3 {[%clk
0:01:48.7]} 21... Bc5 {[%clk 0:01:27.6]} 22. b4 {[%clk 0:01:46.1]} 22... Bb6
{[%clk 0:01:27.2]} 23. Red1 {[%clk 0:01:07.3]} 23... Ne5 {[%clk 0:01:25.1]} 24.
Bb3 {[%clk 0:01:01.1]} 24... Ng4 {[%clk 0:01:23]} 25. Bf4 {[%clk 0:00:55.5]}
25... Rxe4 {[%clk 0:01:22.5]} 26. Bxd6 {[%clk 0:00:55.5]} 26... Bxd4 {[%clk
0:01:04.1]} 27. cxd4 {[%clk 0:00:54.1]} 27... Be6 {[%clk 0:00:57.5]} 28. Bc2
{[%clk 0:00:44.9]} 28... Re2 {[%clk 0:00:54.5]} 29. Bd3 {[%clk 0:00:44.7]} 29...
Rb2 {[%clk 0:00:54.4]} 30. Bg3 {[%clk 0:00:42.2]} 30... Bd5 {[%clk 0:00:46.7]}
31. Re1 {[%clk 0:00:36.4]} 31... Rb3 {[%clk 0:00:38]} 32. Bc2 {[%clk 0:00:30.1]}
32... Rc3 {[%clk 0:00:38]} 33. Bf5 {[%clk 0:00:30.4]} 33... Nf6 {[%clk
0:00:37.9]} 34. Re3 {[%clk 0:00:24.7]} 34... Rxe3 {[%clk 0:00:21.7]} 35. fxe3
{[%clk 0:00:25.6]} 35... Be4 {[%clk 0:00:22.6]} 36. Bh3 {[%clk 0:00:21.6]} 36...
Nd5 {[%clk 0:00:22.8]} 37. Kf2 {[%clk 0:00:14.3]} 37... f5 {[%clk 0:00:23.2]}
38. Be5 {[%clk 0:00:14]} 38... h5 {[%clk 0:00:19.6]} 39. g3 {[%clk 0:00:13.9]}
39... Nxb4 {[%clk 0:00:11.2]} 40. Bf1 {[%clk 0:00:10.2]} 40... Nd5 {[%clk
0:00:09.3]} 41. Be2 {[%clk 0:00:09.6]} 41... g6 {[%clk 0:00:10]} 42. h3 {[%clk
0:00:09.9]} 42... Nc3 {[%clk 0:00:05.4]} 43. g4 {[%clk 0:00:10.8]} 43... Nxe2
{[%clk 0:00:04.6]} 44. Kxe2 {[%clk 0:00:11.7]} 44... hxg4 {[%clk 0:00:05.1]} 45.
hxg4 {[%clk 0:00:12.6]} 45... fxg4 {[%clk 0:00:06]} 46. Bd6 {[%clk 0:00:11.8]}
46... Kf7 {[%clk 0:00:06]} 47. Rg1 {[%clk 0:00:11.2]} 47... Ke6 {[%clk
0:00:04.9]} 48. Bb4 {[%clk 0:00:10.6]} 48... Bf5 {[%clk 0:00:02.3]} 49. Rf1
{[%clk 0:00:09.1]} 49... Rh8 {[%clk 0:00:02.5]} 50. Rf2 {[%clk 0:00:09]} 50...
g3 {[%clk 0:00:02.5]} 51. Rg2 {[%clk 0:00:09.4]} 51... Rh2 {[%clk 0:00:02.9]}
52. Kf3 {[%clk 0:00:08.2]} 52... Be4+ {[%clk 0:00:03.2]} 53. Kxe4 {[%clk
0:00:07.9]} 53... Rxg2 {[%clk 0:00:04.1]} 54. Kf3 {[%clk 0:00:08.6]} 54... Rg1
{[%clk 0:00:03.8]} 55. e4 {[%clk 0:00:07.4]} 55... g2 {[%clk 0:00:02.8]} 56. Kf2
{[%clk 0:00:07.4]} 56... Rd1 {[%clk 0:00:02.9]} 57. d5+ {[%clk 0:00:07]} 57...
cxd5 {[%clk 0:00:02.9]} 58. exd5+ {[%clk 0:00:07.9]} 58... Rxd5 {[%clk
0:00:03.5]} 59. Kxg2 {[%clk 0:00:08.8]} 59... Rf5 {[%clk 0:00:04.1]} 60. Kg3
{[%clk 0:00:09.1]} 60... Kd5 {[%clk 0:00:04.7]} 61. Kg4 {[%clk 0:00:10]} 61...
Kc4 {[%clk 0:00:05.4]} 0-1

[Event "Late-Titled-Tuesday-Blitz-January-16-2024"]
[Site "Chess.com"]
[Date "2024.01.16"]
[Round "6"]
[White "ImportedItalianMaple"]
[Black "reevecanada"]
[Result "0-1"]
[WhiteElo "2422"]
[BlackElo "2638"]
[TimeControl "180+1"]
[EndTime "15:05:18 PST"]
[Termination "reevecanada won on time"]

1. e4 {[%clk 0:03:00.9]} 1... c5 {[%clk 0:02:54.6]} 2. Nf3 {[%clk 0:03:00.6]}
2... d6 {[%clk 0:02:54.1]} 3. d4 {[%clk 0:02:58]} 3... cxd4 {[%clk 0:02:54.4]}
4. Qxd4 {[%clk 0:02:58.9]} 4... Nc6 {[%clk 0:02:53.6]} 5. Qe3 {[%clk 0:02:58.3]}
5... Nf6 {[%clk 0:02:49.5]} 6. Be2 {[%clk 0:02:56.1]} 6... g6 {[%clk 0:02:49.2]}
7. O-O {[%clk 0:02:55.7]} 7... Bg7 {[%clk 0:02:49.5]} 8. Rd1 {[%clk 0:02:54.6]}
8... Nd7 {[%clk 0:02:47.2]} 9. Nc3 {[%clk 0:02:43.2]} 9... O-O {[%clk
0:02:45.6]} 10. Nd5 {[%clk 0:02:41]} 10... Nb6 {[%clk 0:02:43.5]} 11. Nxb6
{[%clk 0:02:32.5]} 11... Qxb6 {[%clk 0:02:41]} 12. Qxb6 {[%clk 0:02:32.1]} 12...
axb6 {[%clk 0:02:41.9]} 13. c3 {[%clk 0:02:26.2]} 13... Nb8 {[%clk 0:02:23.9]}
14. Be3 {[%clk 0:02:23]} 14... Nd7 {[%clk 0:02:23.5]} 15. Nd4 {[%clk 0:02:09.1]}
15... Nc5 {[%clk 0:02:17.4]} 16. f3 {[%clk 0:02:09.1]} 16... Bd7 {[%clk
0:02:15.4]} 17. Bb5 {[%clk 0:01:52]} 17... Rfc8 {[%clk 0:02:07.2]} 18. Bxd7
{[%clk 0:01:49]} 18... Nxd7 {[%clk 0:02:08.1]} 19. Nc2 {[%clk 0:01:43.3]} 19...
b5 {[%clk 0:02:06.6]} 20. Nb4 {[%clk 0:01:42.9]} 20... Bf8 {[%clk 0:01:58.2]}
21. Kf2 {[%clk 0:01:34.1]} 21... Ne5 {[%clk 0:01:54.6]} 22. Nd5 {[%clk
0:01:30.1]} 22... Nc4 {[%clk 0:01:48.5]} 23. Bc1 {[%clk 0:01:28]} 23... e6
{[%clk 0:01:42.2]} 24. Nf6+ {[%clk 0:01:24.3]} 24... Kg7 {[%clk 0:01:41]} 25.
Ng4 {[%clk 0:01:20.7]} 25... Be7 {[%clk 0:01:38.6]} 26. b3 {[%clk 0:01:17.9]}
26... Na3 {[%clk 0:01:36.8]} 27. Bb2 {[%clk 0:01:06.4]} 27... h5 {[%clk
0:01:34.3]} 28. c4+ {[%clk 0:00:55.1]} 28... Kg8 {[%clk 0:01:30]} 29. Nf6+
{[%clk 0:00:41.3]} 29... Kf8 {[%clk 0:01:22]} 30. Nd7+ {[%clk 0:00:38.5]} 30...
Ke8 {[%clk 0:01:14.6]} 31. Nb6 {[%clk 0:00:39]} 31... b4 {[%clk 0:01:10.2]} 32.
Bxa3 {[%clk 0:00:33.5]} 32... bxa3 {[%clk 0:01:07.9]} 33. Nxa8 {[%clk
0:00:32.1]} 33... Rxa8 {[%clk 0:01:06.4]} 34. Rd3 {[%clk 0:00:32.3]} 34... Ra5
{[%clk 0:01:04]} 35. Rad1 {[%clk 0:00:32.6]} 35... b5 {[%clk 0:01:02.3]} 36. Rc1
{[%clk 0:00:29.9]} 36... b4 {[%clk 0:00:59.6]} 37. Rcd1 {[%clk 0:00:29.4]} 37...
Kd7 {[%clk 0:00:57.8]} 38. g3 {[%clk 0:00:29.1]} 38... Rg5 {[%clk 0:00:53]} 39.
f4 {[%clk 0:00:28.8]} 39... Rc5 {[%clk 0:00:52]} 40. Kf3 {[%clk 0:00:28.6]}
40... Ke8 {[%clk 0:00:44.6]} 41. h3 {[%clk 0:00:29]} 41... Rc6 {[%clk
0:00:42.8]} 42. g4 {[%clk 0:00:29.3]} 42... h4 {[%clk 0:00:41.4]} 43. g5 {[%clk
0:00:27.3]} 43... Rc5 {[%clk 0:00:38.3]} 44. Kg4 {[%clk 0:00:26]} 44... Kd7
{[%clk 0:00:30.3]} 45. Kxh4 {[%clk 0:00:23.1]} 45... Kc6 {[%clk 0:00:30.7]} 46.
Kg4 {[%clk 0:00:23.1]} 46... Ra5 {[%clk 0:00:29.9]} 47. h4 {[%clk 0:00:22.3]}
47... Ra8 {[%clk 0:00:30.1]} 48. f5 {[%clk 0:00:21.7]} 48... gxf5+ {[%clk
0:00:25.8]} 49. exf5 {[%clk 0:00:22.6]} 49... Re8 {[%clk 0:00:25.4]} 50. Re3
{[%clk 0:00:20.8]} 50... e5 {[%clk 0:00:24.3]} 51. f6 {[%clk 0:00:21.2]} 51...
Bd8 {[%clk 0:00:23.1]} 52. h5 {[%clk 0:00:21.8]} 52... Rg8 {[%clk 0:00:23.1]}
53. Kf5 {[%clk 0:00:20.8]} 53... Rh8 {[%clk 0:00:23.7]} 54. Rh3 {[%clk
0:00:20.9]} 54... Kc5 {[%clk 0:00:20.7]} 55. Rdd3 {[%clk 0:00:21.1]} 55... Kc6
{[%clk 0:00:20.7]} 56. g6 {[%clk 0:00:20.9]} 56... Rh6 {[%clk 0:00:20.3]} 57. g7
{[%clk 0:00:16.8]} 57... Rxf6+ {[%clk 0:00:20]} 58. Ke4 {[%clk 0:00:15.8]} 58...
Rf4+ {[%clk 0:00:19.6]} 59. Ke3 {[%clk 0:00:15.8]} 59... Bb6+ {[%clk 0:00:20.1]}
60. Ke2 {[%clk 0:00:15.7]} 60... Rf2+ {[%clk 0:00:18.5]} 61. Ke1 {[%clk
0:00:15.1]} 61... Rg2 {[%clk 0:00:17.8]} 62. Rdg3 {[%clk 0:00:15.1]} 62... Bf2+
{[%clk 0:00:18.2]} 63. Kf1 {[%clk 0:00:15.6]} 63... Rxg3 {[%clk 0:00:17.2]} 64.
Rxg3 {[%clk 0:00:15.7]} 64... Bxg3 {[%clk 0:00:18.1]} 65. g8=Q {[%clk
0:00:16.2]} 65... Bf4 {[%clk 0:00:19]} 66. Qxf7 {[%clk 0:00:16.7]} 66... Kc5
{[%clk 0:00:19.2]} 67. Ke2 {[%clk 0:00:17]} 67... Kd4 {[%clk 0:00:19.3]} 68. Qg6
{[%clk 0:00:17]} 68... Kc3 {[%clk 0:00:19.3]} 69. Qxd6 {[%clk 0:00:17.2]} 69...
Kb2 {[%clk 0:00:18.7]} 70. Qxb4 {[%clk 0:00:17.5]} 70... Kxa2 {[%clk 0:00:18.8]}
71. c5 {[%clk 0:00:17.2]} 71... Kb2 {[%clk 0:00:18.2]} 72. Qxa3+ {[%clk
0:00:06.7]} 72... Kxa3 {[%clk 0:00:09.7]} 73. c6 {[%clk 0:00:02.3]} 73... e4
{[%clk 0:00:10.6]} 0-1

[Event "Late-Titled-Tuesday-Blitz-January-16-2024"]
[Site "Chess.com"]
[Date "2024.01.16"]
[Round "6"]
[White "tolimachess"]
[Black "Alexei_Gubajdullin"]
[Result "1/2-1/2"]
[WhiteElo "2436"]
[BlackElo "2619"]
[TimeControl "180+1"]
[EndTime "15:05:36 PST"]
[Termination "Game drawn - insufficient material"]

1. e4 {[%clk 0:02:30.2]} 1... e5 {[%clk 0:02:59.5]} 2. Nc3 {[%clk 0:02:30]} 2...
Nf6 {[%clk 0:02:59]} 3. g3 {[%clk 0:02:30.6]} 3... Nc6 {[%clk 0:02:58.3]} 4. Bg2
{[%clk 0:02:30.8]} 4... Bc5 {[%clk 0:02:58.3]} 5. h3 {[%clk 0:02:30.3]} 5... O-O
{[%clk 0:02:58.1]} 6. Nge2 {[%clk 0:02:30.9]} 6... Nd4 {[%clk 0:02:56.6]} 7. O-O
{[%clk 0:02:30.5]} 7... c6 {[%clk 0:02:56.6]} 8. d3 {[%clk 0:02:30.4]} 8... d5
{[%clk 0:02:56.3]} 9. Bg5 {[%clk 0:02:29.3]} 9... Nxe2+ {[%clk 0:02:51.8]} 10.
Qxe2 {[%clk 0:02:27.6]} 10... d4 {[%clk 0:02:49.9]} 11. Nb1 {[%clk 0:02:19.2]}
11... Be7 {[%clk 0:02:46.2]} 12. f4 {[%clk 0:02:19.1]} 12... Nd7 {[%clk
0:02:46.2]} 13. Bxe7 {[%clk 0:02:18.7]} 13... Qxe7 {[%clk 0:02:46.1]} 14. Nd2
{[%clk 0:02:19.4]} 14... f6 {[%clk 0:02:45]} 15. a4 {[%clk 0:02:12.6]} 15... a5
{[%clk 0:02:26.7]} 16. Nc4 {[%clk 0:02:04.8]} 16... b6 {[%clk 0:02:23.2]} 17.
fxe5 {[%clk 0:02:03]} 17... fxe5 {[%clk 0:02:20]} 18. Rxf8+ {[%clk 0:02:02.6]}
18... Qxf8 {[%clk 0:02:20]} 19. Rf1 {[%clk 0:02:02.5]} 19... Qe7 {[%clk
0:02:19.9]} 20. h4 {[%clk 0:01:40.3]} 20... Ba6 {[%clk 0:02:19.2]} 21. Nd2
{[%clk 0:01:40.1]} 21... Rf8 {[%clk 0:02:18]} 22. Bh3 {[%clk 0:01:40.3]} 22...
Rxf1+ {[%clk 0:02:15.2]} 23. Qxf1 {[%clk 0:01:41.2]} 23... Nc5 {[%clk
0:02:07.2]} 24. b3 {[%clk 0:01:16.1]} 24... Qf7 {[%clk 0:02:05.8]} 25. Nf3
{[%clk 0:01:14.2]} 25... Qf6 {[%clk 0:02:01.9]} 26. Kg2 {[%clk 0:00:52.1]} 26...
g6 {[%clk 0:01:38]} 27. Qc1 {[%clk 0:00:46.2]} 27... Kg7 {[%clk 0:01:37]} 28.
Qg5 {[%clk 0:00:40]} 28... h6 {[%clk 0:01:34.1]} 29. Qxe5 {[%clk 0:00:39]} 29...
Qxe5 {[%clk 0:01:21.4]} 30. Nxe5 {[%clk 0:00:39.9]} 30... Bb7 {[%clk 0:01:22]}
31. Nc4 {[%clk 0:00:39.7]} 31... Na6 {[%clk 0:01:20.8]} 32. Nxb6 {[%clk
0:00:22.7]} 32... Nb4 {[%clk 0:01:20.5]} 33. Be6 {[%clk 0:00:21.9]} 33... Nxc2
{[%clk 0:01:19.6]} 34. Bc4 {[%clk 0:00:22.2]} 34... Ne3+ {[%clk 0:01:12]} 35.
Kf3 {[%clk 0:00:22.3]} 35... g5 {[%clk 0:01:11.3]} 36. hxg5 {[%clk 0:00:22]}
36... hxg5 {[%clk 0:01:11.1]} 37. e5 {[%clk 0:00:22.5]} 37... c5+ {[%clk
0:01:07.5]} 38. Ke2 {[%clk 0:00:22.6]} 38... g4 {[%clk 0:01:07.5]} 39. Nd7
{[%clk 0:00:20.6]} 39... Bf3+ {[%clk 0:01:06.5]} 40. Ke1 {[%clk 0:00:20]} 40...
Kg6 {[%clk 0:00:34.3]} 41. Nxc5 {[%clk 0:00:18.4]} 41... Nd5 {[%clk 0:00:32.4]}
42. Ne6 {[%clk 0:00:14.4]} 42... Nb4 {[%clk 0:00:29.4]} 43. Nxd4 {[%clk
0:00:14.4]} 43... Bg2 {[%clk 0:00:26.9]} 44. Kd2 {[%clk 0:00:14.3]} 44... Bf1
{[%clk 0:00:22.8]} 45. Ke3 {[%clk 0:00:14.4]} 45... Bg2 {[%clk 0:00:20.9]} 46.
Kf4 {[%clk 0:00:11.4]} 46... Bf1 {[%clk 0:00:20.8]} 47. Kxg4 {[%clk 0:00:11.4]}
47... Bxd3 {[%clk 0:00:20.7]} 48. Bxd3+ {[%clk 0:00:09.8]} 48... Nxd3 {[%clk
0:00:21.6]} 49. Nf3 {[%clk 0:00:07.5]} 49... Nc5 {[%clk 0:00:21.1]} 50. Nd2
{[%clk 0:00:06.7]} 50... Nd3 {[%clk 0:00:20.2]} 51. Nc4 {[%clk 0:00:06.2]} 51...
Kf7 {[%clk 0:00:18.5]} 52. Kf5 {[%clk 0:00:06.1]} 52... Ke7 {[%clk 0:00:18.5]}
53. g4 {[%clk 0:00:06]} 53... Nc5 {[%clk 0:00:16.2]} 54. Nxa5 {[%clk 0:00:06.3]}
54... Nd3 {[%clk 0:00:16.3]} 55. Nc4 {[%clk 0:00:06.3]} 55... Nb4 {[%clk
0:00:16.9]} 56. a5 {[%clk 0:00:06.3]} 56... Kf7 {[%clk 0:00:16.9]} 57. Nd6+
{[%clk 0:00:06.6]} 57... Ke7 {[%clk 0:00:17.2]} 58. Ne4 {[%clk 0:00:07.3]} 58...
Nc6 {[%clk 0:00:16.7]} 59. a6 {[%clk 0:00:06.3]} 59... Nd4+ {[%clk 0:00:16.8]}
60. Kg5 {[%clk 0:00:06.7]} 60... Ne6+ {[%clk 0:00:16.8]} 61. Kf5 {[%clk
0:00:06.5]} 61... Nd4+ {[%clk 0:00:17]} 62. Kf4 {[%clk 0:00:07.2]} 62... Ne6+
{[%clk 0:00:17]} 63. Ke3 {[%clk 0:00:07.8]} 63... Nc7 {[%clk 0:00:17.3]} 64. a7
{[%clk 0:00:07.7]} 64... Ke6 {[%clk 0:00:18.2]} 65. Kd4 {[%clk 0:00:07.2]} 65...
Nb5+ {[%clk 0:00:18.3]} 66. Kc5 {[%clk 0:00:07.5]} 66... Nxa7 {[%clk 0:00:17.7]}
67. Kb6 {[%clk 0:00:07]} 67... Nc8+ {[%clk 0:00:17.6]} 68. Kc7 {[%clk
0:00:07.7]} 68... Ne7 {[%clk 0:00:17.5]} 69. g5 {[%clk 0:00:07.1]} 69... Kxe5
{[%clk 0:00:17]} 70. Nc5 {[%clk 0:00:06.9]} 70... Kd5 {[%clk 0:00:16.6]} 71. Kd7
{[%clk 0:00:06.7]} 71... Ng6 {[%clk 0:00:16.1]} 72. Ne6 {[%clk 0:00:04.6]} 72...
Ne5+ {[%clk 0:00:14.7]} 73. Ke7 {[%clk 0:00:04.5]} 73... Kc6 {[%clk 0:00:14]}
74. Kf6 {[%clk 0:00:03.2]} 74... Nd7+ {[%clk 0:00:13.2]} 75. Kf7 {[%clk
0:00:03.2]} 75... Kb5 {[%clk 0:00:12.1]} 76. g6 {[%clk 0:00:01.6]} 76... Ne5+
{[%clk 0:00:11.7]} 77. Kf6 {[%clk 0:00:02.2]} 77... Nxg6 {[%clk 0:00:11.8]} 78.
Kxg6 {[%clk 0:00:03.1]} 78... Kb4 {[%clk 0:00:12.1]} 79. Nd4 {[%clk 0:00:03.7]}
79... Kc3 {[%clk 0:00:12.4]} 80. Ne2+ {[%clk 0:00:03.9]} 80... Kxb3 {[%clk
0:00:12.4]} 1/2-1/2